{"text_format":"3","workbook":"xlsx","n_sheets":2,"sheets":["PRICING SCHEDULE_01","PRICI SCHEDULE_02"],"not_rendered":{"images":1,"defined_names":4},"read":"whole","date_system":"1900"}

{"sheet":"PRICING SCHEDULE_01","index":0,"n_rows":31,"n_cols":9,"rows_kept":31,"merged":[[11,2,11,3],[12,2,12,3],[12,5,14,5],[13,2,13,3],[14,2,14,3],[16,4,16,6],[27,1,30,1],[27,2,27,3],[27,4,27,5],[28,2,28,3],[29,2,29,3],[29,4,29,5],[30,2,30,3],[30,4,30,5]]}
[null,"SUPPLY CHAIN MANAGEMENT"]
[null,"Pricing schedule"]
["RFB No","RFB 2771/2023"]
["RFB Title","BMC CONTROL Software Support and Maintenance for the Numerus and Centurion Data Centres"]
["Bidder Name "]
[]
["1. INSTRUCTION FOR COMPLETING THE PRICING SCHEDULE"]
["(a)  Bidder must complete/enter YELLOW cells only"]
["(b)  Unit and Line prices must be VAT EXCLUSIVE and in South African Rand (ZAR) currency."]
["(c) The price must include all cost to deliver the goods or render the service, including all applicable taxes, duty fees, logistics/delivery, storage, labour, overtime and subsistance and travel"]
["(d)  Prices that are dependent on Rate of Exchange (ROE) must use ROE indicated below, then enter in Column \"Forex %\" the percentage of the price that is ROE dependent (0% means the price is not ROE dependent)"]
[null,"Foreign currency","South African Rand (ZAR) exchange rate "]
[null,"1 US Dollar",{"v":19.25,"d":"R19.25"},null,null,"Mark with an X, which ROE is applicable"]
[null,"1 Euro",{"v":20.79,"d":"R20.79"}]
[null,"1 Pound (UK)",{"v":23.85,"d":"R23.85"}]
[]
[{"$nulls":4},"YEAR 1",null,null,"TOTAL"]
["Item No","Goods/Service description( note year 3 is for 3 months)","Unit of measure","Forex %","Qty ","Unit Price \n(Excl VAT)","Line Price Y1","Line Price Term \n(Excl VAT)","Price clarification comment"]
[1,"BMC CONTROL Software Support and Maintenance for the Numerus and Centurion Data Centres for a period of Three Years",{"$nulls":4},{"$f":"SUBTOTAL(9,G20:G22)","v":0},{"$f":"SUBTOTAL(9,H20:H22)","v":0}]
["1.1","BMC Control-M Workload Automation Mainframe Extension Pack - capacity 19281 MIPS","MIPS",{"v":0,"d":"0%"},19281,0,{"$f":"E20*F20","v":0},{"$f":"SUM(G20)","v":0}]
["1.2","BMC Control-M Output Management - capacity 19281 MIPS","MIPS",{"v":0,"d":"0%"},19281,0,{"$f":"E21*F21","v":0},{"$f":"SUM(G21)","v":0}]
["1.3","BMC Control-M Platforms - capacity 19281 MIPS","MIPS",{"v":0,"d":"0%"},19281,0,0,0]
[null,"TOTAL BID PRICE  (EXCL VAT)",{"$nulls":4},{"$f":"SUBTOTAL(9,G20:G22)","v":0},{"$f":"SUBTOTAL(9,H20:H22)","v":0}]
[null,"VAT (@15%)",{"$nulls":4},{"$f":"G23*0.15","v":0},{"$f":"H23*0.15","v":0}]
[null,"TOTAL  BID PRICE (INCL VAT)",{"$nulls":4},{"$f":"G23+G24","v":0},{"$f":"H23+H24","v":0}]
[]
[]
[null,"I, the bidder, confirm that the price(s) and rate(s) quoted cover all the goods and/or works specified in the bidding documents; that the price(s) or rate(s) cover all my obligations and I accept that any mistakes regarding price(s), rate(s) or calculations will be at my own risk.\n[Note: First convert to PDF, then add signature]"]
[null,null,"Name",null,"Capacity"]
[]
[null,null,"Signature (above)",null,"Date"]

{"sheet":"PRICI SCHEDULE_02","index":1,"n_rows":31,"n_cols":12,"rows_kept":31,"merged":[[11,2,11,3],[12,2,12,3],[12,5,14,5],[13,2,13,3],[14,2,14,3],[16,4,16,6],[16,7,16,9],[27,1,30,1],[27,2,27,3],[27,4,27,5],[28,2,28,3],[29,2,29,3],[29,4,29,5],[30,2,30,3],[30,4,30,5]]}
[null,"SUPPLY CHAIN MANAGEMENT"]
[null,"Pricing schedule"]
["RFB No","INC23428112"]
["RFB Title","BMC CONTROL Software Support and Maintenance for the Numerus and Centurion Data Centres"]
["Bidder Name "]
[]
["1. INSTRUCTION FOR COMPLETING THE PRICING SCHEDULE"]
["(a)  Bidder must complete/enter YELLOW cells only"]
["(b)  Unit and Line prices must be VAT EXCLUSIVE and in South African Rand (ZAR) currency."]
["(c) The price must include all cost to deliver the goods or render the service, including all applicable taxes, duty fees, logistics/delivery, storage, labour, overtime and subsistance and travel"]
["(d)  Prices that are dependent on Rate of Exchange (ROE) must use ROE indicated below, then enter in Column \"Forex %\" the percentage of the price that is ROE dependent (0% means the price is not ROE dependent)"]
[null,"Foreign currency","South African Rand (ZAR) exchange rate "]
[null,"1 US Dollar",{"v":19.25,"d":"R19.25"},null,null,"Mark with an X, which ROE is applicable"]
[null,"1 Euro",{"v":20.79,"d":"R20.79"}]
[null,"1 Pound (UK)",{"v":23.85,"d":"R23.85"}]
[]
[{"$nulls":4},"YEAR 2 (Optional Extension)",null,null,"YEAR 3 (Optional Extension)",null,null,"TOTAL"]
["Item No","Goods/Service description( note year 3 is for 3 months)","Unit of measure","Forex %","Qty ","Unit Price \n(Excl VAT)","Line Price Y1","Qty ","Unit Price \n(Excl VAT)","Line Price Y2","Line Price Term \n(Excl VAT)","Price clarification comment"]
[1,"BMC CONTROL Software Support and Maintenance for the Numerus and Centurion Data Centres for a period of Three Years",{"$nulls":4},{"$f":"SUBTOTAL(9,G20:G22)","v":0},null,null,{"$f":"SUBTOTAL(9,J20:J22)","v":0},{"$f":"SUBTOTAL(9,K20:K22)","v":0}]
["1.1","BMC Control-M Workload Automation Mainframe Extension Pack - capacity 19281 MIPS","MIPS",{"v":0,"d":"0%"},19281,0,{"$f":"E20*F20","v":0},19281,0,{"$f":"H20*I20","v":0},{"$f":"+G20+J20","v":0}]
["1.2","BMC Control-M Output Management - capacity 19281 MIPS","MIPS",{"v":0,"d":"0%"},19281,0,{"$f":"E21*F21","v":0},19281,0,{"$f":"H21*I21","v":0},{"$f":"+G21+J21","v":0}]
["1.3","BMC Control-M Platforms - capacity 19281 MIPS","MIPS",{"v":0,"d":"0%"},19281,0,0,19281,0,0,0]
[null,"TOTAL BID PRICE  (EXCL VAT)",{"$nulls":4},{"$f":"SUBTOTAL(9,G20:G22)","v":0},null,null,{"$f":"SUBTOTAL(9,J20:J22)","v":0},{"$f":"SUBTOTAL(9,K20:K22)","v":0}]
[null,"VAT (@15%)",{"$nulls":4},{"$f":"G23*0.15","v":0},null,null,{"$f":"J23*0.15","v":0},{"$f":"K23*0.15","v":0}]
[null,"TOTAL  BID PRICE (INCL VAT)",{"$nulls":4},{"$f":"G23+G24","v":0},null,null,{"$f":"J23+J24","v":0},{"$f":"K23+K24","v":0}]
[]
[]
[null,"I, the bidder, confirm that the price(s) and rate(s) quoted cover all the goods and/or works specified in the bidding documents; that the price(s) or rate(s) cover all my obligations and I accept that any mistakes regarding price(s), rate(s) or calculations will be at my own risk.\n[Note: First convert to PDF, then add signature]"]
[null,null,"Name",null,"Capacity"]
[]
[null,null,"Signature (above)",null,"Date"]